bitfinex/quotes_ETHUSD_20260307
["timestamp","ask_amount","ask_price","bid_price","bid_amount"]
[1772889856045,1.71852407,1981.9,1981.5,1.72585319]
[1772889859240,0.45710045,1981.9,1981.6,0.46419269]
[1772889860340,1.71851928,1981.9,1981.6,0.46419269]
[1772889863034,0.45710045,1982.0,1981.6,0.46419269]
[1772889865045,1.26141581,1981.9,1981.6,0.46419269]
[1772889865859,1.26137862,1982.0,1981.4,0.46419269]
[1772889866030,1.26228888,1982.1,1981.5,0.46419269]
[1772889866755,1.26228888,1982.1,1981.5,0.46529269]
[1772889867127,0.001,1982.0,1981.7,0.46419269]
[1772889869249,0.001,1982.0,1981.7,1.72573365]
[1772889869456,0.001,1982.0,1981.8,0.46419269]
[1772889870058,0.45810045,1982.0,1981.7,1.72573365]
[1772889872758,0.001,1982.0,1981.8,0.4956506]
[1772889872959,0.46610283,1982.0,1981.6,1.26156871]
[1772889873641,0.46510283,1981.9,1981.5,0.0011]
[1772889876762,1.26147946,1981.8,1981.5,0.0011]
[1772889876966,0.46510283,1981.7,1981.5,0.0011]
[1772889878666,0.46510283,1981.5,1981.3,0.0011]
[1772889884248,1.72670961,1981.6,1981.3,0.4967506]
[1772889884449,1.72661067,1981.8,1981.3,0.4967506]
[1772889884685,1.72659614,1981.8,1981.3,0.4967506]
[1772889885156,1.72659075,1981.8,1981.4,0.4956506]
[1772889885980,0.46510283,1981.8,1981.4,0.4956506]
[1772889886681,1.72658958,1981.8,1981.4,0.4956506]
[1772889887174,0.46510283,1981.8,1981.4,0.4956506]
[1772889887373,0.46510283,1981.8,1981.5,0.4956506]
[1772889887779,1.72658767,1981.8,1981.5,0.4956506]
[1772889888285,0.46510283,1981.8,1981.5,0.4956506]
[1772889888781,1.72658319,1981.8,1981.5,0.4956506]
[1772889891082,1.72658319,1981.8,1981.6,0.0011]
[1772889891456,0.46510283,1981.8,1981.6,0.0011]
[1772889891758,1.26245752,1981.9,1981.6,0.4967506]
[1772889891954,1.72756035,1981.9,1981.6,0.4967506]
[1772889894678,1.72756035,1981.9,1981.6,0.0011]
[1772889894882,0.46510283,1981.8,1981.6,0.0011]
[1772889897582,0.001,1981.9,1981.6,0.4967506]
[1772889898386,0.46610283,1981.9,1981.6,0.4967506]
[1772889899365,0.001,1981.9,1981.6,0.4967506]
[1772889900181,0.001,1981.9,1981.8,0.49384878]
[1772889901291,0.001,1982.1,1981.8,0.49384878]
[1772889903261,0.001,1982.1,1982.0,0.45610629]
[1772889907695,0.001,1982.1,1982.0,1.71745845]
[1772889907997,0.001,1982.1,1982.0,0.45610629]
[1772889909099,0.001,1982.1,1982.0,1.71745845]
[1772889909298,0.001,1982.1,1982.0,0.45610629]
[1772889911575,0.001,1982.1,1981.9,1.26136927]
[1772889911782,0.001,1982.1,1981.9,1.71747556]
[1772889914011,0.001,1982.1,1982.0,0.45610629]
[1772889915313,0.001,1982.1,1982.0,0.45720629]
[1772889915607,0.001,1982.1,1982.0,0.0011]
[1772889917114,0.47357127,1982.1,1982.0,0.0011]
[1772889917282,0.47357127,1982.1,1981.8,0.0011]
[1772889919190,0.47257127,1982.0,1981.6,1.3231]
[1772889919916,0.47257127,1982.0,1981.6,0.0011]
[1772889922425,0.47257127,1981.8,1981.6,0.0011]
[1772889925909,0.47257127,1981.7,1981.6,0.0011]
[1772889927198,0.47257127,1981.9,1981.7,0.0011]
[1772889927597,1.73397391,1982.0,1981.7,0.0011]
[1772889928014,1.73497391,1982.0,1981.7,0.0011]
[1772889929128,1.26240264,1982.0,1981.7,0.0011]
[1772889929319,0.47257127,1981.9,1981.7,0.0011]
[1772889934833,1.26239507,1982.0,1981.7,0.0011]
[1772889934834,1.72420782,1982.0,1981.7,0.0011]
[1772889935032,1.72420782,1982.0,1981.7,0.47989001]
[1772889936128,1.72420782,1982.0,1981.7,0.0011]
[1772889936335,1.26239507,1982.0,1981.7,0.0011]
[1772889936535,0.46181275,1981.9,1981.7,0.0011]
[1772889936937,1.72323426,1981.9,1981.7,0.0011]
[1772889939335,0.46181275,1981.9,1981.7,0.0011]
[1772889939520,0.46181275,1981.9,1981.8,0.0011]
[1772889941017,1.72322856,1981.9,1981.8,0.0011]
[1772889941742,0.46181275,1981.9,1981.8,0.0011]
[1772889943041,1.72322856,1981.9,1981.8,0.0011]
[1772889945516,0.46181275,1981.9,1981.8,0.0011]
[1772889946146,1.72322856,1981.9,1981.8,0.0011]
[1772889950549,0.46181275,1981.8,1981.6,0.0011]
[1772889951753,1.72431414,1981.8,1981.6,0.0011]
[1772889951933,0.46181275,1981.7,1981.6,0.0011]
[1772889956224,0.001,1981.8,1981.6,0.0011]
[1772889956424,0.46281275,1981.8,1981.6,0.0011]
[1772889962256,1.72431655,1981.8,1981.6,0.0011]
[1772889964060,1.72431655,1981.8,1981.7,0.0011]
[1772889966867,0.48423499,1981.7,1981.4,0.18227862]
[1772889970267,1.7458301,1981.7,1981.4,0.18227862]
[1772889971768,1.26159511,1981.7,1981.4,0.0011]
[1772889971973,1.26159511,1981.7,1981.3,0.0011]
[1772889971974,0.48423499,1981.6,1981.3,0.0011]
[1772889972354,0.48423499,1981.4,1981.3,0.0011]
[1772889975067,1.74596911,1981.4,1981.3,0.0011]
[1772889978166,1.74596911,1981.4,1981.1,0.18227862]
[1772889987792,1.74596911,1981.4,1981.2,0.0011]
[1772889988089,0.001,1981.3,1980.9,0.18117862]
[1772889988681,0.48523499,1981.3,1980.9,0.18117862]
[1772889989177,0.48523499,1981.3,1980.8,0.0011]
[1772889989571,0.48523499,1981.3,1980.8,0.18227862]
[1772889990075,0.48523499,1981.3,1980.8,0.0011]
[1772889990773,1.26186149,1981.2,1980.8,0.0011]
[1772889990984,0.48423499,1981.1,1980.8,0.0011]
[1772889992889,0.48423499,1981.1,1980.8,0.18227862]
[1772889998995,1.26186149,1981.2,1980.8,0.18227862]
[1772889999293,1.26186149,1981.2,1980.9,0.0011]
[1772889999596,0.001,1981.0,1980.9,0.18227862]
[1772890001194,0.001,1981.0,1980.9,0.0011]
[1772890013498,0.48703427,1981.0,1980.9,0.0011]
[1772890014619,0.001,1981.0,1980.9,0.0011]
[1772890016523,0.001,1981.0,1980.9,0.18227862]
[1772890017030,0.001,1981.3,1981.0,0.18017862]
[1772890018202,0.001,1981.3,1981.0,1.44215917]
[1772890018405,0.001,1981.3,1981.0,0.18017862]
[1772890020326,0.49347898,1981.3,1981.0,0.18017862]
[1772890022830,0.49347898,1981.3,1981.0,0.18127862]
[1772890023033,0.001,1981.2,1981.0,0.18127862]
[1772890024931,0.001,1981.2,1981.0,1.44326381]
[1772890028804,0.001,1981.2,1981.1,0.18017862]
[1772890029429,0.001,1981.2,1981.1,1.44210381]
[1772890031429,0.001,1981.2,1981.1,0.18017862]
[1772890031605,0.001,1981.3,1981.2,0.17917862]
[1772890032235,0.46914997,1981.7,1981.3,0.17917862]
[1772890032404,0.001,1981.7,1981.3,0.17917862]
[1772890033227,0.46914997,1981.7,1981.3,0.17917862]
[1772890034530,0.46914997,1981.7,1981.4,1.26173412]
[1772890035625,0.46914997,1981.7,1981.4,1.44091274]
[1772890036037,0.001,1981.7,1981.5,0.17917862]
[1772890037136,0.001,1981.7,1981.5,1.44082413]
[1772890040917,0.001,1981.7,1981.6,0.17917862]
[1772890041116,0.001,1981.7,1981.5,1.26164551]
[1772890045954,0.001,1981.8,1981.6,0.17917862]
[1772890047556,0.001,1981.8,1981.7,1.26154311]
[1772890049150,0.001,1981.8,1981.6,0.17917862]
[1772890049445,0.001,1981.8,1981.6,1.44074139]
[1772890049657,0.001,1981.8,1981.7,0.17817862]
[1772890053432,0.48749541,1981.8,1981.4,0.17927862]
[1772890053654,0.48749541,1981.8,1981.5,1.49917862]
[1772890054570,0.001,1981.8,1981.6,0.17817862]
[1772890055660,0.001,1981.8,1981.7,1.26154311]
[1772890056258,0.48749541,1981.8,1981.6,1.26155834]
[1772890059284,0.48749541,1981.8,1981.6,1.26265834]
[1772890059453,0.001,1981.7,1981.6,1.26265834]
[1772890070490,0.48649541,1981.9,1981.6,1.73205118]
[1772890070867,0.48749541,1982.0,1981.7,0.46939284]
[1772890071070,0.001,1982.0,1981.7,0.46939284]
[1772890071285,0.001,1982.0,1981.9,0.46939284]
[1772890071989,0.001,1982.0,1981.9,1.73080865]
[1772890072311,0.001,1982.1,1982.0,0.46939284]
[1772890073565,0.001,1982.2,1982.0,0.46939284]
[1772890073773,0.001,1982.3,1982.0,0.46939284]
[1772890073973,0.001,1982.3,1982.2,0.46939284]
[1772890074691,0.001,1982.3,1982.1,1.73068137]
[1772890075796,0.48749541,1982.3,1982.0,1.26131819]
[1772890076095,0.48749541,1982.3,1981.9,5.04562939]
[1772890076473,0.48749541,1982.3,1981.8,3.05780865]
[1772890076474,0.48649541,1982.2,1981.8,3.05782117]
[1772890076797,0.48649541,1982.2,1981.8,2.58842833]
[1772890083201,0.001,1982.1,1981.8,2.58842833]
[1772890083500,0.4857009,1982.1,1981.8,3.04608886]
[1772890084384,0.4857009,1982.1,1981.8,3.04613985]
[1772890090287,0.4857009,1982.1,1981.8,2.58847932]
[1772890095522,0.4857009,1982.1,1981.9,0.0011]
[1772890107235,0.4857009,1982.1,1982.0,0.0011]
[1772890107734,0.001,1982.1,1982.0,0.0011]
[1772890107935,0.001,1982.1,1982.0,0.45876053]
[1772890108233,0.001,1982.3,1982.1,0.45766053]
[1772890109327,0.001,1982.4,1982.3,0.45766053]
[1772890109514,0.88256981,1982.8,1982.4,0.45766053]
[1772890110124,0.4847009,1982.7,1982.4,0.45766053]
[1772890111343,0.4847009,1982.7,1982.4,1.71872571]
[1772890112248,0.45069201,1982.6,1982.2,0.46744978]
[1772890112442,0.45169201,1982.6,1982.1,0.46744978]
[1772890114135,0.45069201,1982.4,1982.1,1.26123754]
[1772890116413,0.45069201,1982.4,1982.1,0.46744978]
[1772890117607,0.45069201,1982.6,1982.1,0.46744978]
[1772890117909,0.45069201,1982.7,1982.1,0.46744978]
[1772890118124,0.45169201,1982.7,1982.1,0.46744978]
[1772890118327,0.45069201,1982.7,1982.1,0.46744978]
[1772890118827,0.45069201,1982.7,1982.3,0.46744978]
[1772890119036,0.001,1982.5,1982.3,0.46744978]
[1772890122146,0.001,1982.5,1982.3,1.72858107]
[1772890123250,0.001,1982.4,1982.3,1.72858107]
[1772890129561,0.001,1982.5,1982.3,1.72858107]
[1772890129761,0.001,1982.4,1982.3,1.72858107]
[1772890130536,0.001,1982.5,1982.3,1.72858107]
[1772890130737,0.002,1982.5,1982.4,0.46744978]
[1772890130937,0.002,1982.5,1982.4,1.72854743]
[1772890131829,0.84856092,1982.8,1982.4,1.72854743]
[1772890132255,0.39786891,1982.8,1982.4,1.72854743]
[1772890132466,0.45069201,1982.7,1982.4,1.72854743]
[1772890134132,0.39786891,1982.8,1982.5,0.46744978]
[1772890134757,0.001,1982.6,1982.5,0.46744978]
[1772890134958,0.39786891,1982.8,1982.5,0.46744978]
[1772890135157,0.001,1982.9,1982.7,0.46744978]
[1772890136269,0.001,1982.9,1982.7,1.26090684]
[1772890137958,0.45169201,1982.9,1982.7,1.26090684]
[1772890139272,0.001,1982.9,1982.7,1.72835662]
[1772890141070,0.001,1982.9,1982.8,0.49858384]
[1772890142238,0.001,1982.9,1982.6,3.1044585]
[1772890142463,0.469883,1982.9,1982.6,3.1044585]
[1772890143296,0.001,1982.9,1982.6,3.1044585]
[1772890143774,0.001,1982.9,1982.7,0.49953852]
[1772890146089,0.001,1982.9,1982.7,1.76039465]
[1772890147344,0.001,1982.9,1982.7,1.76149465]
[1772890147772,0.001,1982.8,1982.7,1.76149465]
[1772890155765,0.001,1982.8,1982.7,1.26195613]
[1772890164668,0.001,1982.8,1982.7,1.76149465]
[1772890167368,0.468883,1983.5,1982.8,0.49953852]
[1772890168419,0.468883,1983.5,1982.9,1.36]
[1772890169789,1.26046183,1983.4,1983.0,1.26071608]
[1772890170010,0.468883,1983.3,1982.9,2.62074014]
[1772890171708,0.001,1983.2,1982.9,2.62074014]
[1772890171913,0.469883,1983.2,1982.9,2.62074014]
[1772890173104,0.469883,1983.2,1982.9,1.36]
[1772890173303,0.469883,1983.2,1982.9,2.6207796]
[1772890177938,0.469883,1983.2,1982.9,3.09641581]
[1772890179031,0.001,1983.2,1983.0,0.47563621]
[1772890183936,0.002,1983.1,1983.0,0.47563621]
[1772890185534,0.002,1983.1,1982.9,2.6217796]
[1772890186142,0.002,1983.1,1982.9,3.09741581]
[1772890190716,0.46191923,1983.1,1982.9,1.361]
[1772890190912,0.46191923,1983.1,1982.9,0.001]
[1772890195551,0.002,1983.1,1982.9,0.001]
[1772890195752,0.46191923,1983.1,1982.9,0.001]
[1772890197026,0.97100509,1983.0,1981.9,1.06330023]
[1772890197227,0.45991923,1982.1,1981.6,0.0011]
[1772890197428,0.45991923,1981.9,1981.5,0.0011]
[1772890197628,0.45991923,1981.9,1981.3,0.0011]
[1772890198271,3.01687599,1981.8,1981.4,0.47563621]
[1772890198473,4.50905991,1982.2,1981.4,0.47563621]
[1772890198474,2.87342002,1982.2,1981.4,0.47563621]
[1772890198626,3.46693595,1982.1,1981.4,0.47563621]
[1772890198833,3.00701672,1982.0,1981.4,0.47563621]
[1772890199378,0.45991923,1982.1,1981.6,0.47563621]
[1772890202165,1.72120921,1982.1,1981.6,0.47563621]
[1772890202364,0.45991923,1982.1,1981.7,0.48685539]
[1772890203263,0.48781336,1982.0,1981.7,0.48685539]
[1772890204732,1.74918507,1982.0,1981.7,0.48685539]
[1772890205141,0.48781336,1981.9,1981.5,1.329]
[1772890205553,0.48781336,1981.9,1981.3,0.48795539]
[1772890206235,0.48781336,1981.7,1981.3,0.48795539]
[1772890210549,0.48781336,1981.7,1981.4,0.0011]
[1772890210948,0.48781336,1982.2,1981.5,0.48685539]
[1772890213552,0.48781336,1982.1,1981.7,0.48685539]
[1772890214978,0.48781336,1982.1,1981.5,1.26163039]
[1772890215178,0.48781336,1981.9,1981.4,0.0011]
[1772890216283,1.26147946,1981.8,1981.4,0.0011]
[1772890216464,0.48781336,1981.7,1981.4,0.0011]
[1772890218564,0.48781336,1981.6,1981.4,0.0011]
[1772890222390,0.48781336,1981.8,1981.5,0.0011]
[1772890222689,2.99779725,1981.7,1981.5,0.48795539]
[1772890222987,0.48881336,1981.8,1981.5,0.48795539]
[1772890223189,2.99780459,1981.7,1981.5,0.48795539]
[1772890223393,0.48881336,1981.8,1981.5,0.48795539]
[1772890228014,0.001,1981.8,1981.6,0.48685539]
[1772890230916,0.001,1981.8,1981.6,1.74845442]
[1772890233497,0.001,1981.8,1981.6,0.48685539]
[1772890234016,0.001,1981.8,1981.5,0.49014196]
[1772890235027,1.75321191,1982.1,1981.5,0.0011]
[1772890235325,1.75321191,1982.1,1981.6,0.48904196]
[1772890236214,1.75321191,1982.1,1981.7,0.48904196]
[1772890240108,0.49192072,1982.0,1981.7,0.48904196]
[1772890242236,1.75327868,1982.0,1981.7,0.48904196]
[1772890245042,0.49192072,1982.0,1981.7,0.48904196]
[1772890245543,1.75328592,1982.0,1981.7,0.48904196]
[1772890246037,1.75328592,1982.0,1981.7,0.49014196]
[1772890246254,0.001,1981.9,1981.7,0.49014196]
[1772890246451,7.39228303,1982.5,1981.7,1.26260723]
[1772890246452,6.42,1982.5,1981.7,1.26260723]
[1772890246613,0.49192072,1982.7,1981.8,0.48904196]
[1772890247013,0.49192072,1982.5,1982.0,0.48904196]
[1772890249149,0.49192072,1982.5,1982.2,0.48904196]
[1772890249319,1.75296002,1982.5,1982.2,0.48904196]
[1772890249522,0.49192072,1982.5,1982.2,0.48904196]
[1772890250816,1.75295878,1982.5,1982.2,0.48904196]
[1772890251845,0.49192072,1982.5,1982.2,0.48904196]
[1772890252244,1.75298413,1982.5,1982.2,0.48904196]
[1772890252752,0.49192072,1982.5,1982.2,1.75026471]
[1772890253272,0.49192072,1982.6,1982.3,0.48904196]
[1772890253958,1.7528975,1982.6,1982.3,0.48904196]
[1772890254165,0.49192072,1982.6,1982.3,0.48904196]
[1772890254364,1.75289841,1982.6,1982.3,0.48904196]
[1772890255187,0.49192072,1982.5,1982.2,0.48904196]
[1772890255685,0.49192072,1982.7,1982.2,0.48904196]
[1772890257461,1.75289116,1982.6,1982.2,0.48904196]
[1772890258073,1.75389116,1982.6,1982.2,0.48904196]
[1772890260191,1.75389116,1982.6,1982.2,1.75026333]
[1772890260488,0.49292072,1982.6,1982.2,1.75026333]
[1772890260661,0.001,1982.6,1982.3,0.45232888]
[1772890265797,0.001,1982.6,1982.3,1.7134508]
[1772890265999,0.001,1982.6,1982.4,0.49475756]
[1772890269573,1.26080451,1982.9,1982.5,0.49475756]
[1772890269774,1.73474661,1983.0,1982.5,0.49475756]
[1772890270305,0.47198901,1982.9,1982.5,0.49475756]
[1772890272110,0.47198901,1982.9,1982.6,0.49475756]
[1772890275095,0.47198901,1982.9,1982.6,1.75572599]
[1772890275494,1.26271676,1983.0,1982.7,0.49475756]
[1772890275821,1.26271774,1983.0,1982.7,0.49475756]
[1772890276215,1.73470675,1983.0,1982.7,0.49475756]
[1772890276512,0.002,1983.0,1982.7,0.49475756]
[1772890276711,0.002,1983.1,1982.6,1.26096843]
[1772890276712,0.002,1983.1,1982.9,0.49475756]
[1772890279300,0.002,1983.1,1982.9,1.26075697]
[1772890279497,0.002,1983.1,1983.0,0.49475756]
[1772890282021,0.002,1983.1,1982.9,0.49475756]
[1772890282221,1.72781669,1983.3,1982.9,0.49475756]
[1772890283613,0.46728902,1983.3,1982.9,0.49475756]
[1772890283819,1.72781468,1983.3,1982.9,0.49475756]
[1772890284119,0.47198901,1983.2,1982.9,0.49475756]
[1772890286694,0.47198901,1983.1,1982.7,0.49475756]
[1772890286894,0.47198901,1983.1,1982.5,0.49475756]
[1772890287220,0.47198901,1983.1,1982.5,1.75578291]
[1772890287619,0.47198901,1983.1,1982.6,0.49475756]
[1772890288903,0.47198901,1982.9,1982.6,0.49475756]
[1772890289533,0.47198901,1982.9,1982.4,1.26104625]
[1772890289734,0.47198901,1982.9,1982.5,0.49475756]
[1772890291535,0.47198901,1982.9,1982.5,1.75576225]
[1772890291905,0.47198901,1982.9,1982.6,0.49475756]
[1772890292734,0.47198901,1982.9,1982.6,0.49575756]
[1772890293613,0.47198901,1982.9,1982.6,1.75669843]
[1772890293815,0.002,1983.0,1982.7,0.46513337]
[1772890296547,0.002,1983.0,1982.7,1.72601565]
[1772890296844,0.002,1983.0,1982.8,0.46513337]
[1772890297578,0.002,1983.1,1982.8,0.46513337]
[1772890297848,0.002,1983.3,1982.8,0.46513337]
[1772890299562,0.002,1983.3,1983.0,0.46513337]
[1772890301762,0.002,1983.3,1983.0,1.72580416]
[1772890301930,0.002,1983.3,1983.1,0.46513337]
[1772890304027,0.002,1983.3,1983.1,1.72577979]
[1772890306341,0.48747272,1983.5,1983.2,0.46513337]
[1772890306540,1.74780746,1983.6,1983.2,0.46513337]
[1772890306952,0.48747272,1983.5,1983.2,0.46513337]
[1772890308136,0.48747272,1983.5,1983.2,1.72570222]
[1772890308344,0.48747272,1983.5,1983.2,0.46513337]
[1772890308760,1.74787124,1983.5,1983.2,0.46513337]
[1772890309259,1.74787124,1983.5,1982.9,1.363]
[1772890309260,0.48747272,1983.4,1982.9,1.363]
[1772890309453,0.48747272,1983.4,1982.9,1.82813337]
[1772890309652,0.48747272,1983.4,1983.0,0.46513337]
[1772890310446,1.74798199,1983.4,1983.0,0.46513337]
[1772890311068,0.48747272,1983.3,1983.0,0.46513337]
[1772890313071,0.48747272,1983.3,1982.9,2.62374727]
[1772890313474,0.48747272,1983.3,1982.9,3.08888064]
[1772890314169,0.48747272,1983.3,1982.9,1.72588064]
[1772890317178,1.74799905,1983.3,1982.9,1.72588064]
[1772890317971,0.48747272,1983.2,1982.9,0.46513337]
[1772890318480,0.48747272,1983.2,1982.8,1.7270251]
[1772890319681,0.48747272,1983.2,1983.0,0.001]
[1772890322780,1.7480675,1983.2,1983.0,0.001]
[1772890323580,0.47455767,1983.1,1983.0,0.001]
[1772890324679,1.26065251,1983.1,1982.7,0.0011]
[1772890324897,0.47455767,1983.0,1982.5,0.001]
[1772890326790,0.47455767,1982.8,1982.5,0.001]
[1772890331692,0.47455767,1982.6,1982.3,1.371]
[1772890332388,0.47455767,1982.6,1982.3,0.001]
[1772890332693,0.47455767,1982.6,1982.5,0.001]
[1772890333975,0.47455767,1982.4,1982.3,0.001]
[1772890335679,1.73559171,1982.5,1982.3,0.001]
[1772890336397,0.47455767,1982.4,1982.1,0.46994597]
[1772890338200,1.73566868,1982.4,1982.1,0.46994597]
[1772890339102,0.47455767,1982.3,1982.0,0.0011]
[1772890341285,1.73572459,1982.3,1982.0,0.0011]
[1772890342103,0.47455767,1982.3,1982.0,0.0011]
[1772890344104,0.47455767,1982.3,1982.0,0.47104597]
[1772890344801,0.47455767,1982.3,1982.1,0.0011]
[1772890344996,0.47555767,1982.3,1982.1,0.0011]
[1772890346510,1.73672006,1982.3,1982.1,0.0011]
[1772890346722,0.47555767,1982.3,1982.1,0.0011]
[1772890350018,0.001,1982.3,1982.1,0.0011]
[1772890350922,0.001,1982.3,1982.1,0.47104597]
[1772890357543,0.001,1982.3,1982.2,0.0011]
[1772890361944,0.48368192,1982.3,1981.9,0.48650169]
[1772890362103,0.001,1982.3,1981.9,0.48650169]
[1772890363442,0.48268192,1982.6,1982.0,0.48540169]
[1772890364093,0.48268192,1982.8,1982.2,0.48540169]
[1772890366209,0.48268192,1982.8,1982.4,0.48540169]
[1772890366629,1.26082915,1982.9,1982.4,0.48540169]
[1772890367205,1.74351107,1982.9,1982.4,0.48540169]
[1772890368943,0.002,1983.0,1982.6,0.48540169]
[1772890369510,0.48468192,1983.0,1982.6,0.48540169]
[1772890369713,0.001,1982.7,1982.6,0.48540169]
[1772890371047,0.001,1982.7,1982.6,1.74637213]
[1772890371233,0.002,1983.0,1982.7,0.48540169]
[1772890375248,0.48268192,1982.9,1982.5,1.74643573]
[1772890375654,0.48268192,1982.9,1982.6,0.48540169]
[1772890380176,0.47561466,1982.8,1982.5,0.4761925]
[1772890380528,0.47561466,1982.9,1982.5,0.4761925]
[1772890382151,0.002,1982.8,1982.6,1.26097044]
[1772890382356,0.002,1982.8,1982.6,1.75037969]
[1772890382947,0.002,1982.9,1982.7,0.48940925]
[1772890384331,0.002,1982.9,1982.7,1.75030912]
[1772890388662,0.002,1982.9,1982.8,0.48940925]
[1772890389062,0.002,1983.0,1982.8,0.48940925]
[1772890392167,0.002,1983.0,1982.8,1.75024532]
[1772890392469,0.002,1983.0,1982.9,0.48940925]
[1772890396065,0.49276874,1983.3,1983.0,0.48940925]
[1772890396266,0.002,1983.3,1983.0,0.48940925]
[1772890396564,0.002,1983.2,1983.1,0.48940925]
[1772890398342,0.49276874,1983.2,1982.8,0.49040925]
[1772890399041,0.49276874,1983.2,1982.8,0.001]
[1772890400952,0.49076874,1983.0,1982.8,0.001]
[1772890406945,1.75143598,1983.1,1982.8,0.49040925]
[1772890408676,1.75143598,1983.1,1982.9,0.001]
[1772890408876,1.75343598,1983.1,1982.9,0.001]
[1772890420864,1.75343598,1983.1,1982.7,0.001]
[1772890420865,0.46174843,1983.0,1982.7,0.001]
[1772890421383,0.46174843,1983.0,1982.5,0.001]
[1772890421591,0.46174843,1982.9,1982.3,0.001]
[1772890422766,0.46174843,1982.7,1982.3,0.001]
[1772890422981,0.46174843,1982.7,1982.3,0.45972461]
[1772890428198,1.72271887,1982.6,1982.3,0.45972461]
[1772890428697,0.46174843,1982.5,1982.3,0.001]
[1772890431303,1.26109765,1982.4,1982.1,0.45972461]
[1772890431603,1.72282525,1982.5,1982.1,0.45972461]
[1772890433379,0.46174843,1982.4,1982.1,0.45972461]
[1772890434705,0.46174843,1982.4,1982.2,0.0011]
[1772890434881,0.46274843,1982.4,1982.2,0.0011]
[1772890440247,1.72385789,1982.4,1982.2,0.0011]
[1772890440715,0.46898669,1982.3,1982.2,0.0011]
[1772890443194,0.46898669,1982.3,1982.1,0.001]
[1772890443195,0.47917829,1982.2,1981.9,0.0011]
[1772890445805,1.74046682,1982.1,1981.9,0.0011]
[1772890447318,1.74046682,1982.1,1982.0,0.0011]
[1772890447484,1.74146682,1982.1,1982.0,0.0011]
[1772890449093,0.001,1982.1,1982.0,0.0011]
[1772890451696,0.001,1982.1,1981.8,1.11140185]
[1772890452000,0.001,1982.1,1981.9,0.48625995]
[1772890454925,0.001,1982.1,1981.8,0.6251419]
[1772890454926,0.48017829,1982.1,1981.8,0.6251419]
[1772890455105,0.48017829,1982.1,1981.8,1.11140185]
[1772890455926,0.001,1982.1,1981.9,0.48625995]
[1772890456326,0.001,1982.1,1981.8,0.6251419]
[1772890456516,0.48017829,1982.1,1981.8,1.11140185]
[1772890456833,0.001,1982.1,1981.8,1.11140185]
[1772890456998,0.001,1982.1,1981.9,0.48625995]
[1772890457198,0.49830267,1982.1,1981.7,0.0011]
[1772890457698,0.001,1982.1,1981.7,0.0011]
[1772890459527,0.001,1982.1,1981.9,0.0011]
[1772890460326,0.501,1982.1,1981.9,0.0011]
[1772890464129,0.001,1982.1,1981.9,0.0011]
[1772890465926,1.76209765,1982.4,1981.9,0.0011]
[1772890466821,0.001,1982.4,1981.9,0.0011]
[1772890467606,1.26210034,1982.4,1981.9,0.0011]
[1772890468828,0.501,1982.4,1981.9,0.0011]
[1772890471334,1.76209915,1982.4,1981.9,0.0011]
[1772890471707,0.001,1982.3,1981.9,0.0011]
[1772890474612,0.5,1982.7,1981.9,0.0011]
[1772890477795,1.26097044,1982.6,1981.9,0.0011]
[1772890477907,0.5,1982.5,1981.9,0.0011]
[1772890480741,0.5,1982.4,1981.9,0.0011]
[1772890483463,0.5,1982.3,1982.0,0.0011]
[1772890483618,0.501,1982.3,1982.0,0.0011]
[1772890488558,1.7612249,1982.2,1982.0,0.0011]
[1772890494852,0.501,1982.3,1982.0,0.0011]
[1772890495147,1.76216618,1982.3,1982.0,0.0011]
[1772890495680,1.76216618,1982.3,1982.1,0.0011]
[1772890496692,0.5,1982.2,1981.6,0.0011]
[1772890496863,0.4989,1981.6,1981.0,0.0011]
[1772890497057,0.45573827,1981.6,1981.0,0.0011]
[1772890499478,0.48996861,1981.4,1981.0,1.26308889]
[1772890499673,0.48996861,1981.4,1981.1,0.04646173]
[1772890500257,0.48996861,1981.4,1981.1,0.0011]
[1772890500869,0.48996861,1981.4,1980.8,0.40041381]
[1772890501998,0.49803408,1981.2,1980.8,1.70788996]
[1772890503153,0.49803408,1981.2,1980.8,0.44577554]
[1772890504383,0.49803408,1981.2,1980.8,1.70788001]
[1772890504979,0.560714,1981.5,1980.9,0.04536173]
[1772890506390,0.560714,1981.5,1981.1,0.04536173]
[1772890508473,0.560714,1981.5,1981.3,0.04536173]
[1772890509366,0.47731913,1981.9,1981.3,0.04536173]
[1772890513791,0.47731913,1981.9,1981.4,1.30709585]
[1772890514290,0.47731913,1981.9,1981.5,0.04536173]
[1772890515264,0.47731913,1981.8,1981.5,0.04536173]
[1772890515789,0.47731913,1981.8,1981.3,0.04536173]
[1772890515995,0.47731913,1981.8,1981.1,5.04744599]
[1772890516191,0.47731913,1981.8,1981.2,0.04536173]
[1772890517086,0.47731913,1981.9,1981.2,0.04536173]
[1772890519865,0.001,1981.7,1981.4,0.04536173]
[1772890520975,0.38711746,1982.3,1981.4,0.04536173]
[1772890520976,0.47731913,1982.0,1981.4,0.04536173]
[1772890522099,0.47731913,1982.0,1981.6,0.04536173]
[1772890523172,0.47731913,1982.0,1981.5,1.30703218]
[1772890524503,0.47731913,1982.0,1981.6,0.04536173]
[1772890525302,1.261237,1982.2,1981.6,0.04536173]
[1772890525303,0.47731913,1982.2,1981.6,0.04536173]
[1772890526277,0.47731913,1982.2,1981.8,0.04536173]
[1772890528388,0.47731913,1982.2,1981.8,1.26143196]
[1772890528596,0.47731913,1982.2,1981.8,1.30679369]
[1772890528773,0.47731913,1982.2,1981.8,1.26143196]
[1772890528978,0.47731913,1982.2,1981.9,0.04536173]
[1772890529600,0.001,1982.3,1981.9,0.04536173]
[1772890530303,0.47831913,1982.3,1981.9,0.04536173]
[1772890530780,0.47831913,1982.3,1982.0,1.26135216]
[1772890531205,0.47831913,1982.3,1982.0,1.30671389]
[1772890531706,0.47831913,1982.3,1982.0,1.26135216]
[1772890531909,0.001,1982.2,1982.0,1.26135216]
[1772890534204,0.47831913,1982.2,1981.9,1.30672736]
[1772890534411,0.47831913,1982.2,1981.9,1.26136563]
[1772890535894,0.47831913,1982.2,1981.9,1.30672736]
[1772890536716,0.47831913,1982.2,1981.8,0.04536173]
[1772890538901,0.47831913,1982.2,1981.9,1.26141581]
[1772890542318,0.47831913,1982.2,1981.9,1.30677754]
[1772890544720,0.001,1982.1,1981.9,1.30677754]
[1772890555247,0.001,1982.1,1982.0,0.04536173]